bitfinex/quotes_SOLUSD_20250624
["timestamp","ask_amount","ask_price","bid_price","bid_amount"]
[1750787104808,6.89845474,144.96,144.93,6.59816781]
[1750787106477,6.89845474,144.96,144.94,6.59816781]
[1750787106681,13.61759039,144.98,144.95,6.59816781]
[1750787108884,6.72,144.98,144.95,6.89887767]
[1750787109063,6.72,144.98,144.97,6.59816781]
[1750787109980,6.72,144.98,144.97,13.4961467]
[1750787110562,6.72,144.98,144.97,6.59816781]
[1750787113498,13.61759566,144.98,144.95,6.59816781]
[1750787113696,13.61759566,144.98,144.94,6.59816781]
[1750787116108,13.61759566,144.98,144.95,6.59816781]
[1750787117298,13.61759566,144.98,144.97,6.59816781]
[1750787117504,13.61759566,144.98,144.96,6.59816781]
[1750787117882,13.61759566,144.98,144.95,6.59816781]
[1750787118212,13.61759566,144.98,144.94,6.59816781]
[1750787118587,13.61759566,144.98,144.95,6.59816781]
[1750787118804,13.61759566,144.98,144.96,6.59816781]
[1750787119915,13.61759566,144.98,144.95,6.59816781]
[1750787121217,6.72,144.98,144.92,1.5813]
[1750787121511,6.72,144.98,144.97,6.59816781]
[1750787124204,6.72,144.98,144.94,6.89906475]
[1750787124407,6.72,144.98,144.97,6.59816781]
[1750787125615,13.6175031,144.98,144.95,6.59816781]
[1750787126197,13.6175031,144.98,144.94,6.59816781]
[1750787126519,13.6175031,144.98,144.92,8.48158561]
[1750787126733,20.21567091,144.98,144.93,6.59816781]
[1750787126929,6.59816781,144.97,144.92,6.59816781]
[1750787127231,37.45942866,144.98,144.93,6.59816781]
[1750787128617,42.52191422,144.98,144.93,6.59816781]
[1750787129518,37.45942866,144.98,144.94,6.59816781]
[1750787129703,42.5230603,144.98,144.94,6.59816781]
[1750787130097,37.45942866,144.98,144.93,6.59816781]
[1750787130519,42.52227923,144.98,144.93,6.59816781]
[1750787130721,6.59816781,144.97,144.92,6.59816781]
[1750787130919,6.59816781,144.96,144.89,6.6372]
[1750787131107,6.59816781,144.95,144.91,6.59816781]
[1750787131722,6.59816781,144.96,144.91,6.59816781]
[1750787131895,6.89893066,144.95,144.92,6.59816781]
[1750787132222,6.89893066,144.95,144.94,6.59816781]
[1750787134040,39.4961467,144.97,144.93,6.59816781]
[1750787134520,56.74109393,144.97,144.92,6.59816781]
[1750787134726,30.3133377,144.96,144.88,34.5057245]
[1750787134898,30.3133377,144.96,144.91,6.59816781]
[1750787135532,25.24781667,144.96,144.91,6.59816781]
[1750787135913,6.89893066,144.95,144.91,6.59816781]
[1750787136938,30.74442513,144.95,144.91,6.59816781]
[1750787137234,30.74442513,144.95,144.9,6.59816781]
[1750787137525,35.80430155,144.95,144.9,6.59816781]
[1750787138625,30.74442513,144.95,144.91,6.59816781]
[1750787139219,30.74442513,144.95,144.9,6.59816781]
[1750787139429,6.59816781,144.94,144.9,6.59816781]
[1750787139733,6.59816781,144.92,144.88,6.59816781]
[1750787139943,6.64,144.91,144.88,6.59816781]
[1750787140099,13.49947905,144.9,144.85,6.59816781]
[1750787140303,6.59816781,144.89,144.85,6.59816781]
[1750787140528,30.75275717,144.9,144.85,6.59816781]
[1750787140701,24.15458936,144.9,144.86,6.59816781]
[1750787140902,13.54103187,144.91,144.88,6.59816781]
[1750787141213,13.54103187,144.91,144.89,6.59816781]
[1750787141413,13.54103187,144.91,144.9,6.59816781]
[1750787142431,13.54103187,144.91,144.89,6.59816781]
[1750787143815,13.54103187,144.91,144.88,6.59816781]
[1750787144532,6.8998827,144.93,144.9,6.59816781]
[1750787144722,6.64,144.92,144.9,6.59816781]
[1750787144926,6.64,144.92,144.89,6.59816781]
[1750787145399,6.64,144.92,144.88,6.59816781]
[1750787145804,6.64,144.92,144.89,6.59816781]
[1750787148111,6.900835,144.91,144.85,6.90369347]
[1750787148512,6.900835,144.91,144.88,6.59816781]
[1750787149103,13.54057144,144.92,144.89,6.59816781]
[1750787150633,13.54057144,144.92,144.88,6.59816781]
[1750787152020,13.54057144,144.92,144.85,6.90346025]
[1750787152021,6.59816781,144.89,144.84,8.12776781]
[1750787152222,6.59816781,144.87,144.81,1.666]
[1750787152530,6.59816781,144.88,144.83,6.59816781]
[1750787153334,6.90274038,144.87,144.83,6.59816781]
[1750787153637,6.90274038,144.87,144.84,6.59816781]
[1750787153938,6.90274038,144.87,144.82,6.90495301]
[1750787154114,6.90274038,144.87,144.84,6.59816781]
[1750787155210,6.90274038,144.87,144.81,8.57147705]
[1750787155410,6.90274038,144.87,144.84,6.59816781]
[1750787155610,25.24781667,144.89,144.84,6.59816781]
[1750787155831,25.24781667,144.89,144.81,8.57147705]
[1750787156036,25.24781667,144.89,144.84,6.59816781]
[1750787156237,6.59816781,144.88,144.84,6.59816781]
[1750787156821,6.90226394,144.88,144.84,6.59816781]
[1750787157035,6.90226394,144.88,144.85,6.59816781]
[1750787157333,6.59816781,144.87,144.81,1.666]
[1750787157538,6.59816781,144.87,144.82,6.59816781]
[1750787157742,24.15792379,144.88,144.83,6.59816781]
[1750787157923,30.7560916,144.88,144.83,6.59816781]
[1750787159340,13.5013847,144.86,144.81,6.59816781]
[1750787159640,6.59816781,144.84,144.77,1.6257]
[1750787159881,6.59816781,144.82,144.77,8.22386781]
[1750787160440,6.59816781,144.82,144.77,6.59816781]
[1750787160639,6.59816781,144.81,144.74,8.54621359]
[1750787160840,6.59816781,144.81,144.76,6.59816781]
[1750787161142,6.64,144.85,144.8,6.59816781]
[1750787161442,6.6,144.84,144.79,6.90623576]
[1750787161736,6.6,144.84,144.81,6.59816781]
[1750787162323,6.6,144.84,144.82,6.59816781]
[1750787163241,6.6,144.84,144.81,6.59816781]
[1750787163429,13.50428388,144.84,144.81,6.59816781]
[1750787164839,6.6,144.84,144.81,6.59816781]
[1750787165146,13.50435451,144.84,144.77,6.90750846]
[1750787165356,13.50435451,144.84,144.82,6.59816781]
[1750787165534,6.90387553,144.85,144.83,6.59816781]
[1750787165738,6.6,144.84,144.83,6.59816781]
[1750787167143,13.50425633,144.84,144.83,6.59816781]
[1750787167562,6.6,144.84,144.83,6.59816781]
[1750787169041,6.6,144.84,144.83,13.50281463]
[1750787169244,6.6,144.84,144.83,6.59816781]
[1750787171731,6.6,144.84,144.82,6.59816781]
[1750787172153,6.6,144.84,144.83,6.59816781]
[1750787187391,13.50440093,144.84,144.8,27.6374]
[1750787187597,13.50440093,144.84,144.82,6.59816781]
[1750787189398,13.50440093,144.84,144.83,6.59816781]
[1750787189399,6.6,144.84,144.83,6.59816781]
[1750787190194,13.50417011,144.84,144.83,6.59816781]
[1750787190695,13.50417011,144.84,144.82,6.59816781]
[1750787191889,13.50417011,144.84,144.83,6.59816781]
[1750787192874,6.6,144.84,144.83,6.59816781]
[1750787195098,6.6,144.84,144.83,13.50281463]
[1750787195494,6.58,144.89,144.83,13.50281463]
[1750787195685,6.58,144.89,144.88,6.59816781]
[1750787198797,6.58,144.89,144.85,8.56586303]
[1750787199001,6.58,144.89,144.88,6.59816781]
[1750787200488,13.48178756,144.89,144.87,6.59816781]
[1750787202606,13.48178756,144.89,144.85,1.6624]
[1750787202803,13.48178756,144.89,144.87,6.59816781]
[1750787204599,13.48178756,144.89,144.86,6.59816781]
[1750787205378,13.48178756,144.89,144.87,6.59816781]
[1750787206110,13.48178756,144.89,144.83,6.90464682]
[1750787206405,13.48178756,144.89,144.87,6.59816781]
[1750787208816,13.48178756,144.89,144.86,6.59816781]
[1750787208988,13.48178756,144.89,144.87,6.59816781]
[1750787212506,6.90178756,144.89,144.87,6.59816781]
[1750787212682,13.48103849,144.91,144.88,6.59816781]
[1750787212882,13.48103849,144.91,144.89,6.59816781]
[1750787213300,13.48103849,144.91,144.88,6.59816781]
[1750787216612,13.48103849,144.91,144.83,6.90464682]
[1750787216819,13.48103849,144.91,144.88,6.59816781]
[1750787217490,13.48103849,144.91,144.89,6.59816781]
[1750787217682,13.48103849,144.91,144.88,6.59816781]
[1750787218909,13.48103849,144.91,144.85,6.90348412]
[1750787219112,13.48103849,144.91,144.88,6.59816781]
[1750787221218,13.48103849,144.91,144.89,6.59816781]
[1750787225802,13.48103849,144.91,144.83,17.26161706]
[1750787226006,13.48103849,144.91,144.87,6.59816781]
[1750787226621,13.48103849,144.91,144.88,6.59816781]
[1750787226808,6.58,144.91,144.89,6.59816781]
[1750787228228,13.480855,144.91,144.89,6.59816781]
[1750787231654,6.58,144.91,144.9,6.59816781]
[1750787235936,6.58,144.91,144.9,13.49947905]
[1750787236933,6.52,144.96,144.9,13.49947905]
[1750787237122,6.52,144.96,144.94,6.59816781]
[1750787237526,6.52,144.96,144.93,6.59816781]
[1750787237941,13.41885527,144.96,144.93,6.59816781]
[1750787240743,13.41885527,144.96,144.94,6.59816781]
[1750787241356,6.52,144.96,144.92,6.90029753]
[1750787241526,6.52,144.96,144.94,6.59816781]
[1750787241953,6.52,144.96,144.95,6.59816781]
[1750787242484,6.89580479,145.02,144.95,6.59816781]
[1750787242659,51.26,145.01,144.99,6.59816781]
[1750787242860,58.15620011,145.01,144.99,6.59816781]
[1750787243448,58.15620011,145.01,144.96,6.89822626]
[1750787243646,58.15620011,145.01,144.99,6.59816781]
[1750787243833,51.26,145.01,144.99,6.59816781]
[1750787244629,51.26,145.01,145.0,6.59816781]
[1750787245236,6.52,145.01,145.0,6.59816781]
[1750787245446,6.52,145.04,145.0,6.59816781]
[1750787245650,6.52,145.04,145.02,6.59816781]
[1750787246053,6.52,145.04,144.99,6.89684733]
[1750787246263,6.52,145.04,145.03,6.59816781]
[1750787247837,6.52,145.04,145.03,13.49329295]
[1750787249252,6.52,145.04,145.03,6.59816781]
[1750787249453,6.52,145.04,145.03,13.49329295]
[1750787249759,6.52,145.04,145.03,6.59816781]
[1750787251256,13.11816781,145.04,144.94,18.01828387]
[1750787251534,6.59816781,145.02,144.97,6.59816781]
[1750787251768,6.59816781,145.03,144.98,6.59816781]
[1750787252368,6.59816781,145.03,144.95,6.89883031]
[1750787252369,13.41464975,145.04,145.0,6.59816781]
[1750787252735,20.01281756,145.04,144.99,6.59816781]
[1750787253364,13.41464975,145.04,145.0,6.59816781]
[1750787253560,6.89464975,145.04,145.01,6.59816781]
[1750787253762,6.48,145.04,145.03,6.59816781]
[1750787254149,6.48,145.04,145.02,6.59816781]
[1750787254352,6.48,145.04,144.98,18.64964886]
[1750787254569,6.48,145.04,145.03,6.59816781]
[1750787255241,6.48,145.04,145.0,6.89629138]
[1750787255568,6.48,145.04,145.03,6.59816781]
[1750787256451,13.37464975,145.04,145.02,6.59816781]
[1750787256865,13.37464975,145.04,145.01,6.59816781]
[1750787257546,13.37464975,145.04,145.02,6.59816781]
[1750787258374,6.48,145.04,145.02,6.59816781]
[1750787258875,6.48,145.04,145.03,6.59816781]
[1750787259565,13.37474503,145.04,145.02,6.59816781]
[1750787261562,13.37474503,145.04,145.03,6.59816781]
[1750787261563,6.48,145.04,145.03,6.59816781]
[1750787263978,6.48,145.04,145.01,8.49921127]
[1750787264174,6.48,145.04,145.03,6.59816781]
[1750787265688,6.48,145.04,145.01,8.49921127]
[1750787265853,6.48,145.04,145.03,6.59816781]
[1750787267168,6.48,145.04,145.01,8.49953422]
[1750787267370,6.48,145.04,145.03,6.59816781]
[1750787268651,6.48,145.04,145.01,8.49953422]
[1750787268870,6.48,145.04,145.02,6.59816781]
[1750787269268,6.48,145.04,145.03,6.59816781]
[1750787271510,6.48,145.04,145.01,8.49935829]
[1750787271672,6.48,145.04,145.03,6.59816781]
[1750787276794,6.48,145.04,145.03,13.49329295]
[1750787279489,1.3236578,145.05,145.03,13.49329295]
[1750787279691,1.3236578,145.05,145.04,6.59816781]
[1750787281304,1.3236578,145.05,145.02,6.8956006]
[1750787281517,1.3236578,145.05,145.04,6.59816781]
[1750787284710,1.3236578,145.05,145.04,13.49281756]
[1750787285887,1.3236578,145.05,145.04,20.09098537]
[1750787286080,1.3236578,145.05,145.04,38.74063423]
[1750787286325,1.3236578,145.05,145.04,40.29053423]
[1750787287188,6.48,145.09,145.04,57.5271586]
[1750787287410,5.05974625,145.12,145.05,18.64964886]
[1750787287622,11.95032782,145.13,145.1,6.59816781]
[1750787288025,5.05974625,145.13,145.1,6.59816781]
[1750787288193,5.05974625,145.13,145.11,6.59816781]
[1750787288400,11.95012645,145.13,145.11,6.59816781]
[1750787288601,11.95012645,145.13,145.1,6.59816781]
[1750787288815,5.05974625,145.13,145.1,6.59816781]
[1750787289098,5.05974625,145.13,145.11,6.59816781]
[1750787289312,58.05007863,145.14,145.11,6.59816781]
[1750787290227,51.16,145.14,145.11,6.59816781]
[1750787290424,48.69045085,145.18,145.12,6.5777]
[1750787290425,6.29069917,145.18,145.12,6.5777]
[1750787290739,6.59816781,145.16,145.1,1.5536]
[1750787291025,13.05816781,145.15,145.1,6.59816781]
[1750787291204,6.46,145.15,145.11,6.59816781]
[1750787291609,6.46,145.15,145.12,6.59816781]
[1750787292210,6.46,145.15,145.08,30.7022144]
[1750787292211,6.46,145.15,145.13,6.59816781]
[1750787292810,6.29069917,145.23,145.16,26.0]
[1750787293015,13.48284939,145.25,145.2,6.59816781]
[1750787293220,5.06014154,145.26,145.23,6.59816781]
[1750787293429,14.4746,145.27,145.24,6.59816781]
[1750787293728,21.35849875,145.27,145.24,6.59816781]
[1750787294226,19.93859875,145.27,145.24,6.59816781]
[1750787294527,13.34389875,145.27,145.24,6.59816781]
[1750787294725,13.34389875,145.27,145.25,6.59816781]
[1750787295123,6.46,145.27,145.26,6.59816781]
[1750787295913,6.46,145.27,145.21,24.10302319]
[1750787296110,6.46,145.27,145.26,6.59816781]
[1750787297550,6.46,145.27,145.22,6.88610384]
[1750787297710,6.46,145.27,145.24,6.59816781]
[1750787299737,13.34420087,145.27,145.24,6.59816781]
[1750787300047,6.59816781,145.26,145.21,6.59816781]
[1750787300212,6.59816781,145.26,145.22,6.59816781]
[1750787300421,13.48236868,145.27,145.22,6.59816781]
[1750787300742,13.48236868,145.27,145.23,6.59816781]
[1750787300743,6.46,145.26,145.23,6.59816781]
[1750787301323,6.46,145.26,145.2,8.46801095]
[1750787301541,13.34421904,145.26,145.23,6.59816781]
[1750787301739,13.34421904,145.26,145.2,8.46810505]
[1750787302022,13.34421904,145.26,145.23,6.59816781]
[1750787302431,13.34421904,145.26,145.22,6.59816781]
[1750787302742,13.34421904,145.26,145.23,6.59816781]
[1750787303043,13.34421904,145.26,145.22,6.59816781]
[1750787303749,13.34421904,145.26,145.2,8.46810505]
[1750787303920,13.34421904,145.26,145.22,6.59816781]
[1750787304414,13.34421904,145.26,145.2,1.5812]
[1750787304613,13.34421904,145.26,145.22,6.59816781]
[1750787305631,13.34421904,145.26,145.2,1.5812]
[1750787305942,13.34421904,145.26,145.21,6.59816781]
[1750787306150,19.94238685,145.26,145.21,6.59816781]
[1750787306374,13.34421904,145.26,145.2,8.46820458]
[1750787306654,13.34421904,145.26,145.22,6.59816781]
[1750787306854,13.34421904,145.26,145.2,8.46820458]
[1750787307147,13.34421904,145.26,145.22,6.59816781]
[1750787307515,13.34421904,145.26,145.2,8.46820458]
[1750787307716,13.34421904,145.26,145.22,6.59816781]
[1750787307936,19.94238685,145.26,145.22,6.59816781]
[1750787309344,13.34421904,145.26,145.22,6.59816781]
[1750787309722,6.46,145.26,145.23,6.59816781]
[1750787309925,6.46,145.26,145.25,6.59816781]
[1750787313959,6.46,145.26,145.23,6.88540039]
[1750787314161,6.46,145.26,145.25,6.59816781]
[1750787314346,6.46,145.26,145.21,26.0]
[1750787314547,19.94256514,145.26,145.21,6.59816781]
[1750787314845,6.59816781,145.25,145.2,6.59816781]
[1750787315276,13.34439733,145.26,145.2,6.59816781]
[1750787315277,6.88562969,145.23,145.2,6.59816781]
[1750787315862,6.88562969,145.23,145.16,1.5326]
[1750787315863,6.59816781,145.22,145.16,1.5326]
[1750787316065,6.59816781,145.21,145.16,6.59816781]
[1750787316365,13.01816781,145.2,145.16,6.59816781]
[1750787316562,6.42,145.2,145.16,6.59816781]
[1750787317152,6.88752668,145.19,145.16,6.59816781]
[1750787317652,6.42,145.18,145.16,6.59816781]
[1750787320274,6.42,145.18,145.17,6.59816781]
[1750787322280,6.42,145.18,145.17,13.48664339]
[1750787322675,6.42,145.23,145.17,13.48664339]
[1750787322858,6.42,145.23,145.21,6.59816781]
[1750787323557,13.3056413,145.23,145.21,6.59816781]
[1750787324756,13.3056413,145.23,145.19,6.59816781]
[1750787324951,13.3056413,145.23,145.2,6.59816781]
[1750787326471,13.3056413,145.23,145.13,19.33846111]
[1750787326472,6.42,145.23,145.21,6.59816781]
[1750787326682,13.30571043,145.23,145.21,6.59816781]
[1750787328898,6.42,145.23,145.21,6.59816781]
[1750787329083,6.42,145.23,145.22,6.59816781]
[1750787329656,6.42,145.28,145.22,6.59816781]
[1750787329861,6.42,145.28,145.26,6.59816781]
[1750787330079,13.30328202,145.28,145.2,30.70269628]
[1750787330265,13.30328202,145.28,145.25,6.59816781]
[1750787330960,13.30328202,145.28,145.24,6.59816781]
[1750787332570,13.30328202,145.28,145.25,6.59816781]
[1750787333486,13.30328202,145.28,145.21,6.88657805]
[1750787333692,13.30328202,145.28,145.25,6.59816781]
[1750787333990,6.42,145.28,145.26,6.59816781]
[1750787334692,11.4748799,145.28,145.26,6.59816781]
[1750787334887,6.42,145.28,145.26,6.59816781]
[1750787337105,6.42,145.28,145.27,6.59816781]
[1750787337471,6.42,145.28,145.26,6.59816781]
[1750787338816,13.30331821,145.28,145.26,6.59816781]
[1750787340597,13.30331821,145.28,145.19,19.33812137]
[1750787340802,13.30331821,145.28,145.2,6.59816781]
[1750787341010,19.90148602,145.28,145.23,6.59816781]
[1750787342108,19.90148602,145.28,145.24,6.59816781]
[1750787342991,37.10963579,145.28,145.21,6.88626764]
[1750787343187,37.10963579,145.28,145.18,50.91569792]
[1750787343188,6.59816781,145.27,145.23,6.59816781]
[1750787343506,6.59816781,145.27,145.19,6.88752668]
[1750787343707,6.59816781,145.27,145.22,6.59816781]
[1750787344009,6.59816781,145.27,145.23,6.59816781]
[1750787344182,6.88420762,145.26,145.23,6.59816781]
[1750787346484,6.88393849,145.27,145.24,6.59816781]
[1750787346690,6.88393849,145.27,145.25,6.59816781]
[1750787347892,13.3034035,145.28,145.26,6.59816781]
[1750787348097,6.42,145.28,145.27,6.59816781]
[1750787348296,6.42,145.28,145.26,6.59816781]
[1750787351097,6.42,145.28,145.25,6.59816781]
[1750787351695,6.42,145.28,145.26,6.59816781]
[1750787352207,6.42,145.28,145.27,6.59816781]
[1750787360047,6.42,145.28,145.27,13.48190154]
[1750787360345,6.42,145.28,145.27,6.59816781]
[1750787361529,6.42,145.28,145.27,13.48190154]
[1750787361706,6.42,145.28,145.27,6.59816781]
[1750787362110,6.42,145.28,145.25,6.88445633]
[1750787362329,6.42,145.28,145.27,6.59816781]
[1750787362828,6.42,145.28,145.24,8.51626987]
[1750787363023,6.42,145.28,145.26,6.59816781]
[1750787363413,6.42,145.28,145.24,8.51626987]
[1750787363614,6.42,145.28,145.26,6.59816781]
[1750787363817,6.42,145.28,145.24,8.51626987]
[1750787364015,6.42,145.28,145.26,6.59816781]
[1750787364824,6.42,145.28,145.27,6.59816781]
[1750787365526,6.42,145.28,145.26,6.59816781]
[1750787367030,13.30329205,145.28,145.26,6.59816781]
[1750787367629,13.30329205,145.28,145.25,6.59816781]
[1750787368319,13.30329205,145.28,145.26,6.59816781]
[1750787369616,13.30329205,145.28,145.25,6.59816781]
[1750787371470,19.90145986,145.28,145.2,30.95058091]
[1750787371634,6.59816781,145.27,145.21,6.88657805]
[1750787371832,6.59816781,145.27,145.23,6.59816781]
[1750787372027,6.59816781,145.27,145.22,6.59816781]
[1750787372354,6.59816781,145.27,145.2,8.50017007]
[1750787372355,11.68319271,145.27,145.23,6.59816781]
[1750787372536,6.59816781,145.27,145.23,6.59816781]
[1750787372939,6.59816781,145.27,145.2,8.50017007]
[1750787373237,6.88420762,145.26,145.23,6.59816781]
[1750787373661,11.97916653,145.26,145.23,6.59816781]
[1750787374841,11.97916653,145.26,145.21,6.88651655]
[1750787375041,11.97916653,145.26,145.23,6.59816781]
[1750787375346,6.88420762,145.26,145.23,6.59816781]
[1750787375539,11.97916653,145.26,145.23,6.59816781]
[1750787375738,11.97916653,145.26,145.21,6.88651655]
[1750787375739,6.88420762,145.26,145.24,6.59816781]
[1750787375938,11.97916653,145.26,145.24,6.59816781]
[1750787376149,6.88420762,145.26,145.24,6.59816781]
[1750787376371,5.09495891,145.26,145.25,6.59816781]
[1750787376536,5.09495891,145.27,145.25,6.59816781]
[1750787376862,5.09495891,145.27,145.26,6.59816781]
[1750787377069,5.09495891,145.27,145.22,6.88600093]
[1750787377249,5.09495891,145.27,145.25,6.59816781]
[1750787377446,5.09495891,145.27,145.22,6.88600093]
[1750787377661,5.09495891,145.26,145.25,6.59816781]
[1750787377866,5.09495891,145.27,145.25,6.59816781]
[1750787378075,6.88373373,145.27,145.25,6.59816781]
[1750787378475,6.88373373,145.27,145.24,6.59816781]
[1750787381055,24.09306807,145.27,145.2,1.6133]
[1750787381257,11.69263673,145.26,145.21,6.59816781]
[1750787381456,6.8851556,145.24,145.21,6.59816781]
[1750787381761,6.8851556,145.24,145.22,6.59816781]
[1750787382092,6.8851556,145.24,145.21,6.59816781]
[1750787382255,24.09804461,145.24,145.21,6.59816781]
[1750787382768,35.79068134,145.24,145.2,6.59816781]
[1750787382959,30.69621242,145.24,145.2,6.59816781]
[1750787383162,24.09804461,145.24,145.2,6.59816781]
[1750787383363,29.19251353,145.24,145.2,6.59816781]
[1750787383980,35.79068134,145.24,145.2,6.59816781]
[1750787384186,30.69621242,145.24,145.2,6.59816781]
[1750787384378,35.79068134,145.24,145.2,6.59816781]
[1750787384577,30.69621242,145.24,145.2,6.59816781]
[1750787384889,35.79068134,145.24,145.17,1.5663]
[1750787385094,35.79068134,145.24,145.19,6.59816781]
[1750787385987,35.79068134,145.24,145.2,6.59816781]
[1750787386195,35.79068134,145.24,145.15,13.29864058]
[1750787386196,11.97962452,145.24,145.21,6.59816781]
[1750787386513,6.8851556,145.24,145.2,6.59816781]
[1750787386695,13.48332341,145.24,145.2,6.59816781]
[1750787386998,6.8851556,145.24,145.2,6.59816781]
[1750787387177,13.48332341,145.24,145.2,6.59816781]
[1750787387896,30.69621242,145.24,145.19,6.59816781]
[1750787388084,35.79068134,145.24,145.19,6.59816781]
[1750787388480,18.64964886,145.23,145.2,6.59816781]
[1750787388680,6.42,145.22,145.2,6.59816781]
[1750787389880,6.88657805,145.21,145.18,6.59816781]
[1750787390094,6.88657805,145.21,145.14,8.54772839]
[1750787390388,6.88657805,145.21,145.18,6.59816781]
[1750787393999,6.88657805,145.21,145.17,6.59816781]
[1750787394902,6.88657805,145.21,145.18,6.59816781]
[1750787395294,6.88657805,145.21,145.19,6.59816781]
[1750787395693,6.88657805,145.21,145.15,6.88940008]
[1750787395694,6.88657805,145.21,145.18,6.59816781]
[1750787396301,6.88657805,145.21,145.15,6.88940008]
[1750787396518,6.88657805,145.21,145.17,6.59816781]
[1750787397016,6.88657805,145.21,145.18,6.59816781]
[1750787398321,6.88657805,145.21,145.15,6.88940008]
[1750787398532,6.88657805,145.21,145.17,6.59816781]
[1750787398828,6.88657805,145.21,145.15,6.88928784]
[1750787399013,6.88657805,145.21,145.18,6.59816781]
[1750787402307,6.88657805,145.21,145.17,6.59816781]
[1750787402702,6.88657805,145.21,145.18,6.59816781]
[1750787403115,6.88657805,145.21,145.19,6.59816781]
[1750787403317,24.10302319,145.21,145.17,6.59816781]
[1750787404330,18.64964886,145.2,145.16,6.59816781]
[1750787404705,18.64964886,145.2,145.17,6.59816781]
[1750787405242,6.88752668,145.19,145.17,6.59816781]
[1750787405944,6.88752668,145.19,145.16,6.59816781]
[1750787406158,6.59816781,145.18,145.11,9.82608331]
[1750787406442,6.59816781,145.18,145.05,17.23427391]
[1750787406443,6.59816781,145.15,145.06,1.6608]
[1750787406655,12.99816781,145.14,145.09,6.59816781]
[1750787406810,6.4,145.14,145.1,6.59816781]
[1750787407236,6.89037414,145.13,145.1,6.59816781]
[1750787407935,6.89037414,145.13,145.08,6.89264651]
[1750787408240,5.06584638,145.17,145.12,13.19633562]
[1750787408443,6.4,145.19,145.16,6.59816781]
[1750787408615,6.8880011,145.18,145.14,6.59816781]
[1750787410208,6.8880011,145.18,145.15,6.59816781]
[1750787410645,6.8880011,145.18,145.11,8.55220037]
[1750787410942,42.75765271,145.18,145.14,6.59816781]
[1750787411108,49.35582052,145.18,145.13,6.59816781]
[1750787412535,49.35582052,145.18,145.11,1.6611]
[1750787412713,49.35582052,145.18,145.13,6.59816781]
[1750787412916,18.64964886,145.17,145.13,6.59816781]
[1750787413313,18.64964886,145.17,145.11,1.6611]
[1750787413621,18.64964886,145.17,145.13,6.59816781]
[1750787413831,6.88895012,145.16,145.13,6.59816781]
[1750787414231,6.88895012,145.16,145.12,6.59816781]
[1750787414940,13.48711793,145.16,145.11,6.59816781]
[1750787415552,6.59816781,145.14,145.06,6.1943]
[1750787415744,6.89084895,145.12,145.09,6.59816781]
[1750787415963,6.89084895,145.12,145.08,6.59816781]
[1750787416247,24.11797133,145.12,145.08,6.59816781]
[1750787416431,30.71613914,145.12,145.07,6.59816781]
[1750787417120,25.24781667,145.09,145.04,1.6254]
[1750787417327,18.64964886,145.11,145.07,6.59816781]
[1750787418056,6.89179875,145.1,145.07,6.59816781]
[1750787419453,32.89179875,145.1,145.07,6.59816781]
[1750787420651,25.24781667,145.09,145.04,6.59816781]
[1750787420845,6.59816781,145.08,145.04,6.59816781]
[1750787421041,6.4,145.07,145.0,8.49554576]
[1750787421235,6.89369915,145.06,145.03,6.59816781]
[1750787421632,6.4,145.07,145.0,8.49554576]
[1750787421633,13.29332303,145.07,145.04,6.59816781]
[1750787421838,6.4,145.07,145.05,6.59816781]
[1750787422038,6.4,145.07,145.06,6.59816781]
[1750787423454,6.4,145.07,145.0,29.24751712]
[1750787423841,6.4,145.07,145.06,6.59816781]
[1750787425430,6.4,145.07,145.06,13.49186696]
[1750787425842,6.4,145.07,145.06,6.59816781]
[1750787428663,6.4,145.07,145.06,13.49186696]
[1750787429449,6.4,145.12,145.06,13.49186696]
[1750787429667,6.4,145.12,145.11,6.59816781]
[1750787430656,6.4,145.12,145.08,6.89256064]
[1750787430859,6.4,145.12,145.11,6.59816781]
[1750787432786,6.4,145.12,145.11,13.48949163]
[1750787434592,6.4,145.12,145.11,14.99289163]
[1750787440394,6.38,145.17,145.11,63.97671785]
[1750787440697,6.38,145.17,145.16,6.59816781]
[1750787443977,6.38,145.17,145.13,6.89037414]
[1750787444188,6.38,145.17,145.16,6.59816781]
[1750787445299,6.38,145.17,145.16,13.48711793]
[1750787448486,6.38,145.17,145.16,6.88895012]
[1750787448815,6.38,145.17,145.16,13.48711793]
[1750787450711,6.38,145.17,145.16,6.59816781]
[1750787453294,6.38,145.17,145.16,13.48711793]
[1750787456341,6.38,145.17,145.12,0.68885949]
[1750787456638,6.38,145.17,145.16,6.59816781]
[1750787460449,6.38,145.17,145.16,13.48711793]
[1750787462225,6.38,145.22,145.17,1.5916]
[1750787462435,6.38,145.22,145.21,6.59816781]